bitfinex/quotes_ETHUSD_20250611
["timestamp","ask_amount","ask_price","bid_price","bid_amount"]
[1749646770984,0.04,2800.9,2800.8,10.1784]
[1749646771287,0.04,2800.9,2800.8,14.3574]
[1749646771989,0.04,2800.9,2800.8,14.9074]
[1749646772289,0.04,2800.9,2800.8,15.25544356]
[1749646772593,0.04,2800.9,2800.8,15.69594356]
[1749646772790,0.04,2800.9,2800.8,17.26553792]
[1749646773915,0.04,2800.9,2800.8,26.68470186]
[1749646775267,0.04,2801.9,2800.9,10.9905]
[1749646775803,0.04,2801.9,2801.8,0.1784]
[1749646776104,0.04,2801.9,2801.8,4.3544]
[1749646777502,0.04,2801.9,2801.8,4.78984]
[1749646778117,0.04,2801.9,2801.8,15.33984]
[1749646783794,0.04,2801.9,2801.8,15.33384]
[1749646785595,0.04,2801.9,2801.8,15.77434]
[1749646786825,1.3667,2803.4,2802.4,0.55]
[1749646787028,1.3667,2803.4,2802.6,10.55]
[1749646787335,1.3667,2803.7,2802.8,10.6181]
[1749646787508,1.3667,2803.7,2802.8,11.1681]
[1749646787709,1.3667,2803.7,2802.8,11.51816382]
[1749646787911,0.04,2803.9,2802.8,11.51816382]
[1749646788109,1.4307,2803.9,2802.8,11.51816382]
[1749646788309,0.04,2803.9,2802.8,11.51816382]
[1749646788711,0.02651594,2802.9,2802.8,11.51816382]
[1749646788916,0.01348406,2802.9,2802.8,11.51816382]
[1749646789140,0.01348406,2802.9,2802.8,12.93808708]
[1749646789542,0.01348406,2802.9,2802.8,6.31352326]
[1749646789715,0.01348406,2802.9,2802.8,4.8936]
[1749646790103,0.01348406,2802.9,2802.8,0.7276]
[1749646790319,0.01348406,2802.9,2802.8,4.716]
[1749646790526,0.01348406,2802.9,2802.8,14.715]
[1749646790733,0.01348406,2802.9,2802.8,4.165]
[1749646790948,0.01348406,2802.9,2802.6,0.55]
[1749646791147,0.01348406,2802.9,2802.8,4.164]
[1749646791426,0.01348406,2802.9,2802.8,14.164]
[1749646792125,0.01348406,2802.9,2802.8,10.0]
[1749646792330,0.01348406,2802.9,2802.8,14.164]
[1749646793449,0.01348406,2802.9,2802.8,14.163]
[1749646794164,0.01348406,2802.9,2802.8,10.0]
[1749646794365,0.01348406,2802.9,2802.8,14.162]
[1749646795364,0.01348406,2802.9,2802.8,15.5782]
[1749646795665,0.01348406,2802.9,2802.8,10.0]
[1749646795969,0.01348406,2802.9,2802.8,14.161]
[1749646799271,0.01348406,2802.9,2802.8,14.3386]
[1749646799439,0.01348406,2802.9,2802.8,14.8886]
[1749646801266,1.93442861,2803.8,2802.9,10.55]
[1749646801504,0.04,2803.9,2803.3,0.55]
[1749646801630,0.04,2803.9,2803.7,0.55]
[1749646801835,0.04,2803.9,2803.8,10.1776]
[1749646802102,0.04,2803.9,2803.8,4.3346]
[1749646802390,0.04,2803.9,2803.1,0.433]
[1749646802391,1.3832,2803.9,2803.7,0.1776]
[1749646802684,1.311,2803.7,2803.4,0.1776]
[1749646802896,1.3726,2803.4,2803.2,4.156]
[1749646803077,9.41916394,2803.3,2803.2,4.3336]
[1749646804511,1.3726,2803.4,2803.2,4.3336]
[1749646804800,1.3726,2803.4,2803.3,0.1776]
[1749646805154,1.3036,2803.7,2803.3,0.1776]
[1749646805371,1.3036,2803.7,2803.3,0.61096]
[1749646805570,1.3036,2803.7,2803.6,0.1776]
[1749646805869,1.3036,2803.7,2803.6,4.3326]
[1749646806216,9.45916394,2803.9,2803.6,4.3326]
[1749646806217,0.04,2803.9,2803.8,0.55]
[1749646806384,0.04,2803.9,2803.8,2.03826]
[1749646806771,0.04,2803.9,2803.8,2.47126]
[1749646807508,0.04,2803.9,2803.8,12.64886]
[1749646807720,0.04,2803.9,2803.8,15.3136]
[1749646808014,0.04,2803.9,2803.8,14.3306]
[1749646808612,0.04,2803.9,2803.8,4.3306]
[1749646810099,0.04,2803.9,2803.8,4.33189978]
[1749646810409,0.04,2803.9,2803.8,4.33089978]
[1749646812191,0.04,2803.9,2803.8,5.31398976]
[1749646812875,0.04,2803.9,2803.8,5.31268998]
[1749646813912,0.04,2803.9,2803.8,15.48841639]
[1749646814328,0.04,2803.9,2803.8,15.31268998]
[1749646814822,1.4259,2804.9,2803.9,10.55]
[1749646814972,1.93442861,2804.8,2804.2,0.55]
[1749646815169,1.4259,2804.9,2804.8,0.1776]
[1749646815499,0.03,2804.9,2804.8,0.1776]
[1749646817768,1.96442861,2804.9,2804.8,0.1776]
[1749646817969,4.74478991,2804.9,2804.0,4.146]
[1749646818173,9.41916394,2804.7,2804.6,0.1776]
[1749646818373,3.30732861,2804.7,2804.6,0.1776]
[1749646818811,1.93442861,2804.7,2804.6,0.1776]
[1749646820572,1.93442861,2804.7,2804.6,10.1776]
[1749646820970,1.93442861,2804.7,2804.6,11.60986]
[1749646821414,0.03,2804.9,2804.6,0.1776]
[1749646821630,0.03,2804.9,2804.8,0.1776]
[1749646822976,12.64159255,2804.9,2803.7,0.66011729]
[1749646823173,0.9512,2803.9,2803.7,0.66011729]
[1749646825102,0.9711,2804.5,2803.7,0.66011729]
[1749646825307,2.13592639,2804.5,2803.7,0.66011729]
[1749646825785,0.9711,2804.5,2803.8,4.141]
[1749646826494,0.9711,2804.5,2803.9,10.0]
[1749646826897,0.03,2804.9,2804.1,10.55]
[1749646827092,0.03,2804.9,2803.9,10.45080303]
[1749646827293,0.03,2804.9,2804.3,10.0]
[1749646827493,0.03,2804.9,2804.3,4.14]
[1749646827706,1.0008,2804.8,2804.3,4.14]
[1749646827937,1.0008,2804.8,2804.2,10.0]
[1749646828107,1.40607944,2804.8,2804.2,10.0]
[1749646829614,1.40607944,2804.8,2803.9,10.45080303]
[1749646829615,1.0169,2804.5,2803.9,10.45080303]
[1749646829984,8.47640988,2804.9,2803.9,10.45080303]
[1749646829985,0.03,2804.9,2803.9,10.45080303]
[1749646830191,0.03,2804.9,2804.0,1.4589803]
[1749646831193,0.03,2804.9,2804.1,0.00177547]
[1749646831734,0.03,2804.9,2804.1,0.55177547]
[1749646832442,0.03,2804.9,2803.9,3.24752098]
[1749646832641,0.9853,2804.8,2804.1,0.00097807]
[1749646833019,0.9853,2804.8,2804.7,0.1776]
[1749646834547,0.03,2804.9,2804.7,0.1776]
[1749646835545,0.03,2804.9,2804.7,4.3126]
[1749646836081,0.03,2804.9,2804.8,0.1776]
[1749646839012,1.0185,2804.9,2804.8,0.1776]
[1749646839666,1.0185,2804.9,2804.6,0.1776]
[1749646839862,1.83919099,2804.9,2804.6,0.1776]
[1749646840111,8.18600988,2804.7,2804.6,0.1776]
[1749646840385,8.18600988,2804.7,2803.7,0.7044968]
[1749646840586,0.9976,2804.6,2804.3,0.1776]
[1749646840917,0.81860099,2804.5,2804.3,0.1776]
[1749646841869,8.20040988,2804.4,2804.3,0.1776]
[1749646842069,8.20040988,2804.4,2802.6,1.247]
[1749646842314,12.33240988,2804.4,2804.1,0.1776]
[1749646842487,1.31510109,2804.3,2804.1,0.1776]
[1749646843220,1.0298,2804.2,2804.1,0.1776]
[1749646843902,1.0298,2804.6,2804.1,0.1776]
[1749646844325,1.0598,2804.9,2804.1,0.1776]
[1749646844987,1.0598,2804.9,2803.1,7.73840988]
[1749646845188,1.0598,2804.9,2803.1,7.18840988]
[1749646845930,1.0598,2804.9,2803.4,7.18840988]
[1749646846532,0.03,2804.9,2803.4,7.18840988]
[1749646846690,0.03,2804.9,2803.7,7.18840988]
[1749646846890,0.03,2804.9,2803.8,4.129]
[1749646847087,0.03,2804.9,2803.9,10.55]
[1749646848328,0.03,2804.9,2804.1,10.55]
[1749646848630,0.03,2804.9,2803.9,10.0]
[1749646848831,0.03,2804.9,2804.0,4.128]
[1749646849003,0.03,2804.9,2803.7,0.55]
[1749646849329,1.0213,2805.3,2804.1,4.128]
[1749646849516,1.0213,2805.3,2804.2,0.4128]
[1749646849827,1.0213,2805.3,2804.2,10.4128]
[1749646850032,9.12283849,2805.2,2804.0,4.127]
[1749646850217,1.0313,2805.1,2804.0,4.127]
[1749646850414,1.93442861,2805.0,2804.0,4.127]
[1749646850930,1.93442861,2805.0,2804.1,10.0]
[1749646851492,1.93442861,2805.0,2803.9,4.126]
[1749646851692,7.18840988,2804.6,2803.1,0.04]
[1749646852037,7.18840988,2804.6,2803.1,10.04]
[1749646852038,0.9535,2804.5,2803.1,10.04]
[1749646852387,0.9535,2804.5,2803.3,10.0]
[1749646852846,0.9535,2804.5,2803.4,0.55]
[1749646852989,1.0078,2804.8,2803.4,0.55]
[1749646853930,1.0078,2804.8,2803.2,0.55]
[1749646854110,1.0078,2804.8,2804.7,0.1776]
[1749646854310,2.02086385,2804.8,2804.7,0.1776]
[1749646855309,1.0078,2804.8,2804.7,0.1776]
[1749646857995,1.0078,2804.8,2803.5,10.0]
[1749646858199,1.0078,2804.8,2804.5,0.1776]
[1749646859335,0.8193,2804.5,2803.1,4.162]
[1749646859508,10.2167973,2804.2,2804.1,0.1776]
[1749646860936,0.8193,2804.2,2804.1,0.1776]
[1749646861125,0.8635,2804.5,2804.1,0.1776]
[1749646861638,0.8635,2804.5,2804.4,0.1776]
[1749646862135,10.2609973,2804.5,2804.4,0.1776]
[1749646862351,11.69919703,2804.5,2803.1,0.04]
[1749646862500,0.8458,2804.4,2804.2,0.1776]
[1749646862700,10.2432973,2804.3,2804.2,0.1776]
[1749646864640,10.2432973,2804.3,2803.1,0.04]
[1749646864641,0.8497,2804.1,2803.1,0.04]
[1749646864812,9.3974973,2803.5,2803.1,0.04]
[1749646864997,4.119,2803.8,2803.4,0.1776]
[1749646865201,9.3974973,2803.5,2803.4,0.1776]
[1749646865406,9.3974973,2803.5,2803.1,0.04]
[1749646865607,9.3974973,2803.5,2803.3,0.1776]
[1749646865608,0.8377,2803.4,2803.3,0.1776]
[1749646865941,0.8377,2803.4,2803.1,0.2176]
[1749646866548,1.4146,2804.1,2803.3,0.1776]
[1749646866748,0.8275,2804.4,2803.3,0.1776]
[1749646867040,0.8275,2804.4,2803.1,0.04]
[1749646867041,5.355,2804.8,2804.3,0.1776]
[1749646867239,5.355,2804.8,2804.5,0.1776]
[1749646867240,1.38076,2804.7,2804.5,0.1776]
[1749646868241,0.8275,2804.7,2804.5,0.1776]
[1749646868445,0.8275,2804.7,2804.6,0.1776]
[1749646870142,0.8275,2804.7,2804.3,0.1776]
[1749646870346,4.9445,2804.7,2804.3,0.1776]
[1749646870518,7.18831429,2804.5,2804.3,0.1776]
[1749646870726,0.71883143,2804.4,2804.3,0.1776]
[1749646871104,1.58373143,2804.4,2803.1,0.04]
[1749646871343,0.8649,2804.1,2803.1,0.04]
[1749646871544,0.8649,2804.1,2803.9,0.1776]
[1749646872331,10.8649,2804.1,2803.1,0.04]
[1749646872534,0.8169,2803.6,2803.5,0.1776]
[1749646873422,8.00521429,2803.6,2803.5,0.1776]
[1749646873622,9.21723572,2803.6,2803.5,0.1776]
[1749646874620,4.9309,2803.6,2803.5,0.1776]
[1749646874824,8.42531429,2803.9,2803.5,0.1776]
[1749646874825,4.114,2803.9,2803.5,0.1776]
[1749646875248,4.114,2803.9,2803.8,0.1776]
[1749646875652,11.30231429,2803.9,2803.8,0.1776]
[1749646875871,11.30231429,2803.9,2803.1,0.04]
[1749646876179,11.30231429,2803.9,2803.4,0.1776]
[1749646876180,1.21899143,2803.8,2803.4,0.1776]
[1749646876476,0.8894,2803.5,2803.4,0.1776]
[1749646876682,0.8894,2803.5,2803.1,0.04]
[1749646876683,0.8894,2803.5,2803.2,0.1776]
[1749646876829,5.0024,2803.5,2803.2,0.1776]
[1749646877160,0.8894,2803.5,2803.1,0.04]
[1749646877372,4.113,2803.6,2803.4,0.1776]
[1749646877660,4.113,2803.7,2803.4,0.1776]
[1749646878173,4.113,2803.7,2803.6,0.1776]
[1749646878376,0.8548,2803.6,2803.1,0.04]
[1749646878579,3.56703262,2803.5,2803.2,0.1776]
[1749646878887,3.56703262,2803.5,2803.1,0.04]
[1749646878888,1.0426,2803.4,2803.1,0.04]
[1749646879029,1.415,2803.2,2803.1,0.04]
[1749646879432,1.5926,2803.2,2803.1,0.04]
[1749646879632,8.78091429,2803.2,2803.1,0.04]
[1749646879942,11.12156637,2803.2,2803.1,0.04]
[1749646881030,10.92106637,2802.8,2802.2,0.66162518]
[1749646881228,10.92106637,2802.3,2802.2,0.66162518]
[1749646881528,15.03306637,2802.3,2802.1,0.2184]
[1749646882191,15.03306637,2802.3,2802.1,0.04]
[1749646882373,1.50330664,2802.2,2802.1,0.04]
[1749646882668,1.50330664,2802.2,2801.8,0.1784]
[1749646883030,10.07896637,2801.9,2801.8,0.1784]
[1749646883364,14.18996637,2801.9,2801.8,0.1784]
[1749646884068,15.02196637,2801.9,2801.5,0.1784]
[1749646884229,1.41899664,2801.8,2801.5,0.1784]
[1749646884437,10.07896637,2801.6,2800.3,1.237]
[1749646884768,4.111,2801.5,2801.3,0.1784]
[1749646884972,0.8578,2801.4,2801.3,0.1784]
[1749646885146,2.36257664,2801.4,2801.3,0.1784]
[1749646885468,2.36257664,2801.4,2801.0,0.1784]
[1749646885641,10.07896637,2801.2,2801.0,0.1784]
[1749646885845,0.8681,2801.0,2800.1,0.04]
[1749646886053,10.07896637,2800.7,2800.1,0.04]
[1749646886276,4.11,2800.6,2800.3,0.1784]
[1749646887058,11.43146637,2800.4,2800.3,0.1784]
[1749646887232,0.7284,2800.3,2800.1,0.04]
[1749646887437,4.66,2800.2,2800.1,0.04]
[1749646888074,5.4625,2800.2,2800.1,0.04]
[1749646888269,1.5263,2800.1,2799.1,0.04]
[1749646888456,10.07896637,2799.8,2799.1,0.04]
[1749646888768,4.109,2799.7,2799.1,0.04]
[1749646888966,0.7979,2799.6,2799.1,0.04]
[1749646889369,10.07896637,2799.5,2799.1,0.04]
[1749646889590,4.109,2799.4,2799.1,0.04]
[1749646890078,4.109,2799.4,2799.2,0.11156466]
[1749646890282,4.109,2799.4,2799.3,0.11156619]
[1749646890482,4.109,2799.4,2799.3,0.11156676]
[1749646890635,4.11,2799.4,2799.3,0.11156672]
[1749646890831,0.7979,2799.6,2799.1,0.04]
[1749646891033,0.8303,2800.1,2799.1,0.04]
[1749646891251,1.238,2800.5,2799.1,0.04]
[1749646891533,1.238,2800.5,2799.2,0.55]
[1749646891779,1.238,2800.5,2799.1,0.04]
[1749646891979,1.85573,2800.5,2799.1,0.04]
[1749646893273,5.337,2800.4,2799.1,0.04]
[1749646894178,10.90926637,2800.6,2799.1,0.04]
[1749646894358,4.108,2800.4,2799.1,0.04]
[1749646894760,10.07896637,2800.3,2799.1,0.04]
[1749646894960,1.41869664,2800.2,2799.1,0.04]
[1749646895259,10.07896637,2799.7,2799.1,0.04]
[1749646896469,1.228,2799.6,2799.1,0.04]
[1749646896664,0.8315,2799.3,2799.1,0.04]
[1749646898344,0.8315,2799.3,2799.2,0.1784]
[1749646902687,4.9375,2799.3,2799.2,0.1784]
[1749646903074,5.58912958,2799.3,2799.2,0.1784]
[1749646903291,5.58912958,2799.3,2799.1,0.04]
[1749646903292,9.71154445,2799.3,2799.1,0.04]
[1749646903459,10.07896637,2799.2,2799.1,0.04]
[1749646903655,10.07896637,2799.2,2797.0,1.3165391]
[1749646903656,0.55,2799.1,2797.0,1.3165391]
[1749646903890,10.25736637,2798.9,2798.4,0.1784]
[1749646904098,0.8731,2798.8,2798.4,0.1784]
[1749646904280,6.2061,2798.8,2798.4,0.1784]
[1749646905056,0.55,2798.7,2796.6,0.35805608]
[1749646905264,0.67561,2798.6,2798.2,0.1784]
[1749646908111,0.67561,2798.6,2798.3,0.11159963]
[1749646908278,0.67561,2798.6,2798.2,0.1784]
[1749646908476,0.67561,2798.6,2798.3,0.1115999]
[1749646908802,0.67561,2798.6,2798.2,0.1784]
[1749646909121,4.104,2798.5,2798.2,0.1784]
[1749646909263,4.104,2798.5,2798.3,0.11160024]
[1749646909465,4.104,2798.5,2798.4,0.11160035]
[1749646909466,5.4915,2798.5,2798.4,0.11160035]
[1749646909664,0.55,2798.4,2796.6,0.68798347]
[1749646909968,0.1784,2798.3,2797.8,0.1784]
[1749646910291,0.04,2798.9,2797.9,0.1115907]
[1749646910489,0.04,2798.9,2797.8,0.1784]
[1749646910490,0.04,2798.9,2798.0,0.11158226]
[1749646910663,0.04,2798.9,2797.8,0.1784]
[1749646910861,0.8375,2798.8,2797.8,0.1784]
[1749646911063,4.103,2798.7,2797.9,0.11158493]
[1749646911294,4.103,2798.7,2798.0,0.11158459]
[1749646911500,4.103,2798.7,2798.1,0.11158418]
[1749646911697,4.103,2798.7,2798.2,0.11158502]
[1749646911862,0.8375,2798.8,2798.3,0.11158417]
[1749646912064,4.9405,2798.8,2797.4,0.36419926]
[1749646912409,0.8375,2798.8,2797.3,10.0]
[1749646912707,0.8375,2798.8,2797.4,0.11158487]
[1749646912880,0.8375,2798.8,2797.3,10.0]
[1749646914103,0.8375,2798.8,2797.3,0.55]
[1749646914267,0.848957,2798.7,2797.4,0.11159458]
[1749646914461,0.848957,2798.7,2797.3,0.55]
[1749646914462,1.7058457,2798.7,2797.5,0.11159445]
[1749646914664,1.7058457,2798.7,2797.0,10.3572]
[1749646914665,0.84977862,2798.6,2797.6,0.11159665]
[1749646914877,12.32540381,2798.5,2796.4,1.21150607]
[1749646915201,10.07896637,2797.9,2796.1,0.66259713]
[1749646915501,0.8982,2797.7,2796.1,0.66259713]
[1749646915802,0.8982,2797.7,2796.1,1.02494157]
[1749646916001,0.8982,2797.7,2796.1,1.34887215]
[1749646916199,0.21272,2797.6,2796.1,1.34887215]
[1749646918620,2.1272,2797.7,2796.1,1.34887215]
[1749646918789,0.8982,2797.7,2796.2,0.55]
[1749646919134,1.229,2797.6,2796.2,0.55]
[1749646919285,1.229,2797.6,2796.1,11.34887215]
[1749646919487,1.229,2797.6,2796.1,1.34887215]
[1749646919981,0.8472,2797.5,2796.1,1.34887215]
[1749646920182,0.8472,2797.5,2797.3,0.1784]
[1749646920433,10.07896637,2797.4,2796.1,1.34887215]
[1749646920628,1.93171664,2797.3,2797.1,0.1784]
[1749646920934,0.55,2797.0,2796.1,0.66259713]
[1749646921079,0.55,2797.0,2796.5,0.1784]
[1749646921080,10.97246637,2796.9,2796.5,0.1784]
[1749646921284,0.55,2796.6,2796.3,0.1784]
[1749646921485,0.8935,2796.5,2796.1,0.2184]
[1749646922987,0.8935,2796.5,2796.1,0.04]
[1749646925127,1.22,2796.4,2796.1,0.04]
[1749646925301,2.84904664,2796.4,2796.1,0.04]
[1749646925628,0.8935,2796.5,2796.1,0.04]
[1749646927135,1.22,2796.9,2796.2,0.11166636]
[1749646927443,1.22,2796.9,2796.1,0.04]
[1749646927593,1.22,2796.9,2796.2,0.11164684]
[1749646927792,1.22,2796.9,2796.3,0.1116504]
[1749646927989,1.22,2796.9,2796.1,0.04]
[1749646929043,1.22,2796.9,2796.2,0.1116511]
[1749646929366,1.22,2796.9,2796.3,0.11164862]
[1749646929537,1.22,2796.9,2796.1,0.04]
[1749646930043,0.8662,2796.8,2796.2,0.11165325]
[1749646930336,0.8662,2796.8,2796.1,0.04]
[1749646930494,0.8662,2796.8,2796.2,0.11166954]
[1749646930495,1.07482,2796.8,2796.2,0.11166954]
[1749646930690,1.07482,2796.8,2796.3,0.11167614]
[1749646930904,10.98626637,2796.6,2796.4,0.1116769]
[1749646931105,11.53626637,2796.6,2796.1,0.04]
[1749646931436,0.9073,2796.6,2796.2,0.11168212]
[1749646931748,0.9073,2796.6,2796.3,0.11167739]
[1749646931894,0.9073,2796.6,2796.1,0.04]
[1749646932095,0.9073,2796.6,2796.5,0.1784]
[1749646932312,1.12003,2796.6,2796.5,0.29006849]
[1749646932518,0.9073,2796.6,2796.5,0.29007059]
[1749646932701,0.9073,2796.6,2796.5,0.1784]
[1749646932899,0.1784,2797.0,2796.5,0.1784]
[1749646933115,0.8897,2797.2,2796.5,0.1784]
[1749646933306,0.8897,2797.2,2796.9,0.1784]
[1749646933649,11.17963637,2797.2,2796.1,0.04]
[1749646933833,0.1784,2797.1,2796.6,0.1784]
[1749646934000,0.1784,2797.1,2796.7,0.11165675]
[1749646934200,0.1784,2797.1,2796.6,0.1784]
[1749646934702,0.8869,2797.0,2796.7,0.1116614]
[1749646934902,0.8869,2797.0,2796.1,0.04]
[1749646934903,0.55,2796.8,2796.1,0.04]
[1749646935116,0.8201,2796.7,2796.3,0.1784]
[1749646935943,0.8201,2796.7,2796.4,0.11167414]
[1749646936115,0.8201,2796.7,2796.3,0.1784]
[1749646936444,0.8201,2796.7,2796.4,0.11167449]
[1749646936445,1.085603,2796.7,2796.4,0.11167449]
[1749646936740,1.085603,2796.7,2796.5,0.11167626]
[1749646936948,1.085603,2796.7,2796.6,0.11167699]
[1749646937242,1.085603,2796.7,2796.6,0.11167678]
[1749646937402,1.085603,2796.7,2796.6,0.1116767]
[1749646937609,1.085603,2796.7,2796.3,0.1784]
[1749646937847,1.085603,2796.7,2796.4,0.11167679]
[1749646938031,1.085603,2796.7,2796.3,0.1784]
[1749646938208,0.8201,2796.7,2796.1,0.04]
[1749646938407,0.8201,2796.7,2796.6,0.1784]
[1749646938632,0.8201,2796.7,2796.6,0.29006434]
[1749646938943,0.8201,2796.7,2796.6,0.1784]
[1749646939143,0.8201,2796.7,2796.6,0.29006658]
[1749646939366,0.8201,2796.7,2796.6,0.29006711]
[1749646939557,0.8674,2797.3,2796.6,0.29006265]
[1749646939756,0.8674,2797.3,2796.6,0.1784]
[1749646939922,0.8674,2797.3,2796.1,0.04]
[1749646940102,0.8674,2797.3,2797.2,0.1784]
[1749646940306,1.22,2797.4,2797.2,0.1784]
[1749646940744,0.901,2798.1,2797.2,0.1784]
[1749646941170,0.901,2798.1,2797.8,0.1784]
[1749646941343,1.13094,2798.1,2797.8,0.1784]
[1749646942563,0.04,2797.9,2797.8,0.1784]
[1749646943836,0.04,2797.9,2796.7,0.3556897]
[1749646944071,0.04,2797.9,2796.6,0.55]
[1749646944683,0.04,2797.9,2796.8,10.55]
[1749646946601,0.04,2797.9,2797.7,10.0]
[1749646949309,0.04,2797.9,2797.6,10.55]
[1749646949511,0.04,2797.9,2797.7,4.086]
[1749646952269,0.04,2797.9,2797.8,10.0]
[1749646952684,0.04,2797.9,2797.8,10.31529434]
[1749646952897,0.04,2797.9,2797.8,10.1784]
[1749646953404,0.04,2797.9,2797.8,23.03827079]
[1749646953604,0.04,2797.9,2797.8,0.1784]
[1749646953815,0.04,2797.9,2797.8,4.2614]
[1749646953970,0.04,2797.9,2797.8,0.1784]
[1749646954169,0.04,2797.9,2797.8,4.2614]
[1749646954485,0.04,2797.9,2797.8,27.12127079]
[1749646957825,0.04,2797.9,2797.8,10.1784]
[1749646957977,0.8787,2797.9,2797.8,0.1784]
[1749646958176,0.8787,2797.9,2796.7,0.35729722]
[1749646958375,0.8787,2797.9,2797.7,0.1784]
[1749646958580,1.49485708,2797.8,2797.7,0.1784]
[1749646959328,2.37055708,2797.8,2797.7,0.1784]
[1749646959483,0.8757,2797.7,2797.4,0.1784]
[1749646960321,0.8757,2797.7,2796.4,4.079]
[1749646960628,1.0896,2797.6,2797.1,0.1784]
[1749646960778,0.55,2797.5,2797.1,0.1784]
[1749646960977,0.9137,2797.4,2795.8,0.44193749]
[1749646961328,0.9137,2797.2,2795.9,4.079]
[1749646961480,2.3021,2797.2,2796.7,0.1784]
[1749646962023,2.3021,2797.2,2795.8,0.44193749]
[1749646962024,0.8686,2796.9,2795.8,0.44193749]
[1749646962225,1.047,2796.9,2796.4,0.1784]
[1749646962823,2.257,2796.9,2796.4,0.1784]
[1749646963027,0.2257,2796.8,2796.4,0.1784]
[1749646963329,0.8686,2796.9,2795.9,10.0]
[1749646963477,0.8686,2796.9,2796.8,0.1784]
[1749646965781,0.8686,2796.9,2796.7,0.1784]
[1749646966327,0.8686,2796.9,2795.6,4.077]
[1749646966536,1.047,2796.9,2796.4,0.1784]
[1749646966878,1.21,2797.1,2795.7,0.4077]
[1749646967080,1.21,2797.2,2796.8,0.1784]
[1749646967631,0.9124,2797.3,2795.8,0.55]
[1749646967922,0.9124,2797.3,2797.1,0.1784]
[1749646969327,0.55,2797.2,2797.1,0.1784]
[1749646969509,10.02558572,2796.8,2795.1,0.04]
[1749646969714,0.55,2796.7,2795.1,0.04]
[1749646969895,0.8826,2796.5,2795.1,0.04]
[1749646971421,0.8826,2796.5,2795.1,0.39073802]
[1749646971739,0.20926,2796.4,2795.1,0.39073802]
[1749646972229,0.8637,2796.2,2795.1,0.04]
[1749646972396,0.839,2796.0,2795.1,0.04]
[1749646972784,0.839,2795.8,2795.1,0.04]
[1749646973437,0.8673,2795.6,2795.1,0.04]
[1749646975118,2.0783,2795.6,2795.1,0.04]
[1749646976090,0.8818,2795.5,2795.1,0.04]
[1749646976297,10.99675761,2795.5,2795.1,0.04]
[1749646976516,0.8919,2795.4,2795.1,0.04]
[1749646976723,2.1029,2795.4,2795.1,0.04]
[1749646977331,10.11495761,2795.3,2795.1,0.04]
[1749646977542,0.8919,2795.2,2795.1,0.04]
[1749646979522,0.8919,2795.2,2795.1,0.2184]
[1749646979918,0.8919,2795.2,2795.1,0.04]
[1749646982066,0.8776,2794.8,2794.6,0.005]
[1749646982257,1.4276,2794.7,2794.6,0.005]
[1749646982421,5.8976,2794.7,2794.6,0.005]
[1749646982623,16.01255761,2794.7,2794.6,0.005]
[1749646982818,16.01255761,2794.7,2794.3,0.005]
[1749646982819,5.00408574,2794.4,2794.3,0.005]
[1749646983018,26.99513769,2794.4,2794.3,0.005]
[1749646983227,0.55,2794.0,2793.8,0.58951871]
[1749646983521,1.4418,2793.9,2793.8,0.58951871]
[1749646983768,0.8918,2793.9,2793.8,0.58951871]
[1749646984930,1.4418,2793.9,2793.8,0.58951871]
[1749646985389,0.8918,2793.9,2793.8,0.58951871]
[1749646985936,1.4418,2793.9,2793.8,0.58951871]
[1749646986142,10.11495761,2794.0,2793.1,0.04]
[1749646986143,0.55,2793.7,2793.1,0.04]
[1749646986379,0.55,2793.5,2793.1,0.04]
[1749646986677,10.0,2793.5,2793.1,0.04]
[1749646986893,0.55,2793.4,2793.1,0.04]
[1749646987102,1.67442,2793.4,2793.1,0.04]
[1749646987241,10.0,2793.5,2793.1,0.04]
[1749646987582,10.0,2793.5,2792.4,0.14389626]
[1749646987583,11.4236,2793.2,2792.4,0.14389626]
[1749646987794,10.55,2792.8,2792.4,0.14389626]
[1749646987951,0.9317,2792.7,2792.4,0.14389626]
[1749646989656,4.072,2792.9,2792.4,0.14389626]
[1749646989981,0.8785,2793.1,2792.4,0.14389626]
[1749646991658,2.0668,2793.4,2792.4,0.14389626]
[1749646992670,0.8638,2793.4,2792.4,0.14389626]
[1749646992869,1.203,2793.6,2793.3,0.1784]
[1749646994476,0.8694,2793.7,2793.3,0.1784]
[1749646994879,0.9129,2794.1,2792.8,10.0]
[1749646995076,1.0913,2794.5,2793.6,0.1784]
[1749646995269,1.0913,2794.5,2794.0,0.1784]
[1749646995465,1.203,2794.6,2792.4,4.07]
[1749646995466,0.9004,2794.2,2792.4,4.07]
[1749646995666,0.9004,2794.2,2793.5,0.1784]
[1749646995667,0.1784,2794.0,2793.5,0.1784]
[1749646997181,1.10153576,2794.1,2792.7,10.0]
[1749646997508,1.0788,2794.2,2793.7,0.1784]
[1749646997700,1.0788,2794.2,2792.7,1.08299872]
[1749646997903,1.0788,2794.2,2793.7,0.1784]
[1749646998107,0.9004,2794.2,2794.0,0.1784]
[1749646998606,1.203,2794.5,2793.0,0.55]
[1749646998791,1.203,2794.5,2794.3,0.1784]
[1749646998990,11.31795761,2794.5,2792.9,4.069]
[1749646999202,0.1784,2794.4,2793.9,0.1784]
[1749646999794,4.47,2794.8,2793.3,10.0]